[Event "Cracovia Festival-A 2023"]
[Site "Krakow"]
[Date "2023.12.28"]
[Round "2.22"]
[White "Pajeken, Jakob Leon"]
[Black "Flak, Pawel"]
[Result "1/2-1/2"]
[ECO "B03"]
[WhiteElo "2428"]
[BlackElo "2145"]
[Annotator "ChessBase"]
[PlyCount "69"]
[EventDate "2023.12.24"]
[EventType "swiss"]
[EventCountry "POL"]
[SourceTitle "playchess.com"]
[Source "ChessBase"]
[SourceQuality "1"]
[TimeControl "40/5400+30:1800+30"]

1. e4 {[%emt 0:00:17]} Nf6 {[%emt 0:00:01]} 2. e5 {[%emt 0:00:06]} Nd5 {[%emt 0:00:01]} 3. c4 {[%emt 0:00:07]} Nb6 {[%emt 0:00:01]} 4. d4 {[%emt 0:00:06]} d6 {[%emt 0:00:01]} 5. exd6 {[%emt 0:00:06]} exd6 {[%emt 0:00:02]} 6. Nc3 {[%emt 0:00:11]} Be7 {[%emt 0:00:28]} 7. Bd3 {[%emt 0:00:17]} O-O {[%emt 0:00:04]} 8. Nge2 {[%emt 0:00:25]} Re8 {[%emt 0:00:15]} 9. O-O {[%emt 0:02:22]} Bf8 {[%emt 0:00:02]} 10. Be3 {[%emt 0:01:51]} c6 {[%emt 0:03:27]} 11. b3 {[%emt 0:08:45]} d5 {[%emt 0:04:47]} 12. Nf4 {[%emt 0:05:57]} g6 {[%emt 0:02:25]} 13. Qf3 {[%emt 0:05:10]} Be6 {[%emt 0:05:25]} 14. Nxe6 {[%emt 0:08:24]} fxe6 {[%emt 0:00:02]} 15. Rad1 {[%emt 0:02:14]} N8d7 {[%emt 0:02:36]} 16. Qg3 {[%emt 0:04:50]} Qe7 {[%emt 0:04:22]} 17. c5 {[%emt 0:06:49]} Nc8 {[%emt 0:00:12]} 18. Bg5 {[%emt 0:01:21]} Qf7 {[%emt 0:07:23]} 19. b4 {[%emt 0:15:35]} Bg7 {[%emt 0:05:46]} 20. Bc2 {[%emt 0:01:14]} Ne7 {[%emt 0:11:21]} 21. Qc7 {[%emt 0:02:48]} Nf6 {[%emt 0:00:07]} 22. Qf4 {[%emt 0:05:33]} Nf5 {[%emt 0:05:33]} 23. Bxf6 {[%emt 0:08:42]} Qxf6 {[%emt 0:00:06]} 24. Ne2 {[%emt 0:00:52]} e5 {[%emt 0:07:18]} 25. dxe5 {[%emt 0:00:12]} Rxe5 {[%emt 0:00:02]} 26. Ng3 {[%emt 0:00:58]} Nh4 {[%emt 0:00:05]} 27. Qxf6 {[%emt 0:01:14]} Bxf6 {[%emt 0:00:01]} 28. Bb3 {[%emt 0:00:25]} Kg7 {[%emt 0:11:17]} 29. Rfe1 {[%emt 0:03:14]} Rxe1+ {[%emt 0:06:38]} 30. Rxe1 {[%emt 0:00:05]} a6 {[%emt 0:00:03]} 31. Kf1 {[%emt 0:01:35]} Rf8 {[%emt 0:05:03]} 32. Re2 {[%emt 0:03:44]} Rf7 {[%emt 0:04:37]} 33. a3 {[%emt 0:00:47]} Kf8 {[%emt 0:02:07]} 34. f3 {[%emt 0:01:12]} Re7 {[%emt 0:02:04]} 35. a4 {[%emt 0:03:35]} 1/2-1/2

[Event "Cracovia Festival-A 2023"]
[Site "Krakow"]
[Date "2023.12.28"]
[Round "2.23"]
[White "Wojdak, Jan"]
[Black "Pacan-Milej, Kosma"]
[Result "0-1"]
[ECO "B12"]
[WhiteElo "2219"]
[BlackElo "2425"]
[Annotator "ChessBase"]
[PlyCount "74"]
[EventDate "2023.12.24"]
[EventType "swiss"]
[EventCountry "POL"]
[SourceTitle "playchess.com"]
[Source "ChessBase"]
[SourceQuality "1"]
[TimeControl "40/5400+30:1800+30"]

1. e4 {[%emt 0:00:03]} c6 {[%emt 0:00:07]} 2. d4 {[%emt 0:00:10]} d5 {[%emt 0:00:09]} 3. e5 {[%emt 0:00:10]} Bf5 {[%emt 0:00:09]} 4. h4 {[%emt 0:00:18]} h5 {[%emt 0:00:20]} 5. Bd3 {[%emt 0:00:10]} Bxd3 {[%emt 0:00:08]} 6. Qxd3 {[%emt 0:00:04]} e6 {[%emt 0:00:08]} 7. Nf3 {[%emt 0:00:19]} Qa5+ {[%emt 0:02:45]} 8. Nbd2 {[%emt 0:00:38]} Qa6 {[%emt 0:00:06]} 9. c4 {[%emt 0:00:21]} Nh6 {[%emt 0:01:24]} 10. O-O {[%emt 0:00:59]} Nf5 {[%emt 0:00:07]} 11. b3 {[%emt 0:00:23]} Bb4 {[%emt 0:00:54]} 12. a4 {[%emt 0:22:56]} Nd7 {[%emt 0:08:42]} 13. Ba3 {[%emt 0:03:54]} Bxa3 {[%emt 0:13:41]} 14. Rxa3 {[%emt 0:00:51]} O-O {[%emt 0:01:39]} 15. Qb1 {[%emt 0:08:35]} Qb6 {[%emt 0:07:05]} 16. a5 {[%emt 0:04:13]} Qb4 {[%emt 0:02:39]} 17. Ra4 {[%emt 0:05:44]} Qe7 {[%emt 0:00:14]} 18. cxd5 {[%emt 0:07:05]} cxd5 {[%emt 0:00:11]} 19. Ng5 {[%emt 0:00:17]} g6 {[%emt 0:02:46]} 20. g3 {[%emt 0:00:26]} Rac8 {[%emt 0:03:42]} 21. Rc1 {[%emt 0:07:58]} Nb8 {[%emt 0:00:02]} 22. Ndf3 {[%emt 0:02:03]} Qd7 {[%emt 0:02:55]} 23. g4 {[%emt 0:09:29]} hxg4 {[%emt 0:03:43]} 24. Nh2 {[%emt 0:00:03]} g3 {[%emt 0:08:48]} 25. Ng4 {[%emt 0:01:33]} Qb5 {[%emt 0:00:19]} 26. Nf6+ {[%emt 0:11:37]} Kg7 {[%emt 0:00:15]} 27. Ra2 {[%emt 0:02:44]} Nc6 {[%emt 0:02:48]} 28. h5 {[%emt 0:03:51]} Ncxd4 {[%emt 0:01:31]} 29. h6+ {[%emt 0:01:08]} Nxh6 {[%emt 0:02:42]} 30. Nh5+ {[%emt 0:05:12]} Kh8 {[%emt 0:00:06]} 31. Kg2 {[%emt 0:01:42]} Rxc1 {[%emt 0:10:40]} 32. Qxc1 {[%emt 0:00:03]} gxh5 {[%emt 0:00:45]} 33. Nxe6 {[%emt 0:01:03]} Nxe6 {[%emt 0:00:18]} 34. Qxh6+ {[%emt 0:00:04]} Kg8 {[%emt 0:00:03]} 35. Qxh5 {[%emt 0:00:21]} Qd3 {[%emt 0:01:13]} 36. Ra4 {[%emt 0:00:11]} d4 {[%emt 0:00:22]} 37. Qg4+ {[%emt 0:00:12]} Qg6 {[%emt 0:00:05]} 0-1

[Event "Cracovia Festival-A 2023"]
[Site "Krakow"]
[Date "2023.12.28"]
[Round "2.24"]
[White "Gkavardinas, Antonios"]
[Black "Kucza, Karol"]
[Result "0-1"]
[ECO "C50"]
[WhiteElo "2141"]
[BlackElo "2343"]
[Annotator "ChessBase"]
[PlyCount "88"]
[EventDate "2023.12.24"]
[EventType "swiss"]
[EventCountry "POL"]
[SourceTitle "playchess.com"]
[Source "ChessBase"]
[SourceQuality "1"]
[TimeControl "40/5400+30:1800+30"]

1. e4 {[%emt 0:00:04]} e5 {[%emt 0:00:06]} 2. Nf3 {[%emt 0:00:13]} Nc6 {[%emt 0:00:08]} 3. Bc4 {[%emt 0:00:06]} Bc5 {[%emt 0:00:05]} 4. d3 {[%emt 0:00:12]} Nf6 {[%emt 0:00:08]} 5. O-O {[%emt 0:00:17]} d6 {[%emt 0:00:19]} 6. c3 {[%emt 0:00:16]} O-O {[%emt 0:00:09]} 7. Nbd2 {[%emt 0:01:30]} a6 {[%emt 0:03:29]} 8. a4 {[%emt 0:00:37]} Ba7 {[%emt 0:02:15]} 9. h3 {[%emt 0:04:30]} h6 {[%emt 0:03:12]} 10. Re1 {[%emt 0:01:07]} Be6 {[%emt 0:02:00]} 11. Bxe6 {[%emt 0:07:38]} fxe6 {[%emt 0:02:58]} 12. Nf1 {[%emt 0:01:45]} Nh5 {[%emt 0:02:08]} 13. d4 {[%emt 0:07:03]} Qf6 {[%emt 0:17:05]} 14. Be3 {[%emt 0:02:08]} Nf4 {[%emt 0:01:20]} 15. Kh2 {[%emt 0:08:45]} exd4 {[%emt 0:17:36]} 16. cxd4 {[%emt 0:04:57]} d5 {[%emt 0:00:16]} 17. e5 {[%emt 0:05:18]} Qf7 {[%emt 0:11:00]} 18. Ra3 {[%emt 0:16:42]} a5 {[%emt 0:00:36]} 19. Rc3 {[%emt 0:02:11]} Bb6 {[%emt 0:01:27]} 20. Ng1 {[%emt 0:03:59]} Ng6 {[%emt 0:02:03]} 21. Rc2 {[%emt 0:09:06]} Nxd4 {[%emt 0:06:23]} 22. Bxd4 {[%emt 0:01:26]} Qf4+ {[%emt 0:00:08]} 23. Ng3 {[%emt 0:01:45]} Qxd4 {[%emt 0:00:20]} 24. Qxd4 {[%emt 0:03:14]} Bxd4 {[%emt 0:01:55]} 25. Rxc7 {[%emt 0:00:19]} Rxf2 {[%emt 0:13:21]} 26. Re2 {[%emt 0:13:17]} Rxe2 {[%emt 0:01:41]} 27. N1xe2 {[%emt 0:00:07]} Bxb2 {[%emt 0:00:10]} 28. Rxb7 {[%emt 0:00:34]} Bxe5 {[%emt 0:00:07]} 29. Kg1 {[%emt 0:00:16]} Rd8 {[%emt 0:03:40]} 30. Rb3 {[%emt 0:00:55]} Rb8 {[%emt 0:02:41]} 31. Rxb8+ {[%emt 0:01:14]} Bxb8 {[%emt 0:00:06]} 32. Nf1 {[%emt 0:01:13]} Kf7 {[%emt 0:00:09]} 33. Kf2 {[%emt 0:00:11]} Ne5 {[%emt 0:00:21]} 34. Ke3 {[%emt 0:02:01]} Nc4+ {[%emt 0:00:46]} 35. Kd4 {[%emt 0:00:15]} Ba7+ {[%emt 0:00:07]} 36. Kc3 {[%emt 0:00:14]} e5 {[%emt 0:00:18]} 37. g4 {[%emt 0:00:37]} Ke6 {[%emt 0:00:27]} 38. Nfg3 {[%emt 0:00:12]} g6 {[%emt 0:01:24]} 39. h4 {[%emt 0:01:35]} Ne3 {[%emt 0:00:17]} 40. g5 {[%emt 0:00:00]} hxg5 {[%emt 0:00:00]} 41. hxg5 {[%emt 0:01:12]} Bb6 {[%emt 0:00:44]} 42. Kd2 {[%emt 0:00:49]} Nc4+ {[%emt 0:00:39]} 43. Kc3 {[%emt 0:00:31]} Nd6 {[%emt 0:00:19]} 44. Kd2 {[%emt 0:01:48]} Bd8 {[%emt 0:00:23]} 0-1

[Event "Cracovia Festival-A 2023"]
[Site "Krakow"]
[Date "2023.12.28"]
[Round "2.25"]
[White "Dubnevych, Maksym"]
[Black "Fishchuk, Vladyslav"]
[Result "0-1"]
[ECO "C45"]
[WhiteElo "2340"]
[BlackElo "2198"]
[Annotator "ChessBase"]
[PlyCount "52"]
[EventDate "2023.12.24"]
[EventType "swiss"]
[EventCountry "POL"]
[SourceTitle "playchess.com"]
[Source "ChessBase"]
[SourceQuality "1"]
[TimeControl "40/5400+30:1800+30"]

1. e4 {[%emt 0:00:03]} e5 {[%emt 0:00:12]} 2. Nf3 {[%emt 0:00:25]} Nc6 {[%emt 0:00:05]} 3. d4 {[%emt 0:06:46]} exd4 {[%emt 0:00:05]} 4. Nxd4 {[%emt 0:00:07]} Bc5 {[%emt 0:00:05]} 5. Nb3 {[%emt 0:00:28]} Bb6 {[%emt 0:00:07]} 6. Nc3 {[%emt 0:00:16]} Nge7 {[%emt 0:01:45]} 7. a4 {[%emt 0:08:39]} a6 {[%emt 0:04:21]} 8. Nd5 {[%emt 0:03:12]} Nxd5 {[%emt 0:02:34]} 9. exd5 {[%emt 0:22:30]} Qf6 {[%emt 0:05:14]} 10. Qe2+ {[%emt 0:01:22]} Ne7 {[%emt 0:00:22]} 11. g3 {[%emt 0:09:54]} d6 {[%emt 0:01:35]} 12. Bg2 {[%emt 0:03:10]} Bg4 {[%emt 0:06:45]} 13. Qd2 {[%emt 0:19:13]} Qe5+ {[%emt 0:12:30]} 14. Kf1 {[%emt 0:00:04]} a5 {[%emt 0:02:21]} 15. f4 {[%emt 0:14:53]} Qf6 {[%emt 0:05:41]} 16. h3 {[%emt 0:03:00]} Bd7 {[%emt 0:01:57]} 17. Be4 {[%emt 0:02:48]} c6 {[%emt 0:06:31]} 18. dxc6 {[%emt 0:00:37]} bxc6 {[%emt 0:00:45]} 19. Kg2 {[%emt 0:01:06]} d5 {[%emt 0:00:42]} 20. Bf3 {[%emt 0:00:01]} O-O {[%emt 0:00:20]} 21. Qd3 {[%emt 0:01:54]} Nf5 {[%emt 0:01:39]} 22. Kh2 {[%emt 0:00:29]} Bf2 {[%emt 0:03:51]} 23. g4 {[%emt 0:00:20]} Qh4 {[%emt 0:00:59]} 24. Kg2 {[%emt 0:00:42]} Qg3+ {[%emt 0:03:31]} 25. Kf1 {[%emt 0:00:01]} Rfe8 {[%emt 0:00:43]} 26. Qa6 {[%emt 0:00:59]} Re1# {[%emt 0:00:09]} 0-1

[Event "Cracovia Festival-A 2023"]
[Site "Krakow"]
[Date "2023.12.28"]
[Round "2.26"]
[White "Gorkiewicz, Mateusz"]
[Black "Skytte, Rasmus"]
[Result "1/2-1/2"]
[ECO "B38"]
[WhiteElo "2147"]
[BlackElo "2337"]
[Annotator "ChessBase"]
[PlyCount "56"]
[EventDate "2023.12.24"]
[EventType "swiss"]
[EventCountry "POL"]
[SourceTitle "playchess.com"]
[Source "ChessBase"]
[SourceQuality "1"]
[TimeControl "40/5400+30:1800+30"]

1. e4 {[%emt 0:00:03]} c5 {[%emt 0:00:14]} 2. Nf3 {[%emt 0:00:10]} Nc6 {[%emt 0:00:21]} 3. d4 {[%emt 0:00:15]} cxd4 {[%emt 0:00:11]} 4. Nxd4 {[%emt 0:00:11]} g6 {[%emt 0:00:13]} 5. c4 {[%emt 0:01:24]} Bg7 {[%emt 0:00:12]} 6. Be3 {[%emt 0:00:19]} Qb6 {[%emt 0:00:33]} 7. Nb3 {[%emt 0:22:36]} Qc7 {[%emt 0:00:26]} 8. Qd2 {[%emt 0:00:40]} Nf6 {[%emt 0:01:26]} 9. f3 {[%emt 0:04:00]} d6 {[%emt 0:10:40]} 10. Nc3 {[%emt 0:02:13]} Be6 {[%emt 0:02:01]} 11. Rc1 {[%emt 0:02:05]} b6 {[%emt 0:02:33]} 12. Be2 {[%emt 0:08:45]} O-O {[%emt 0:00:37]} 13. O-O {[%emt 0:01:10]} Rfe8 {[%emt 0:06:37]} 14. Nd5 {[%emt 0:08:38]} Qb7 {[%emt 0:00:16]} 15. Nd4 {[%emt 0:04:46]} Rac8 {[%emt 0:02:01]} 16. Nxc6 {[%emt 0:10:55]} Qxc6 {[%emt 0:09:25]} 17. Bg5 {[%emt 0:02:14]} a6 {[%emt 0:03:11]} 18. Bxf6 {[%emt 0:08:28]} exf6 {[%emt 0:03:13]} 19. b3 {[%emt 0:02:40]} f5 {[%emt 0:02:19]} 20. exf5 {[%emt 0:01:09]} Bxf5 {[%emt 0:02:40]} 21. Kh1 {[%emt 0:03:14]} Be6 {[%emt 0:05:44]} 22. Nb4 {[%emt 0:02:33]} Qb7 {[%emt 0:03:40]} 23. f4 {[%emt 0:01:48]} b5 {[%emt 0:08:21]} 24. Bf3 {[%emt 0:06:11]} Qb6 {[%emt 0:02:28]} 25. cxb5 {[%emt 0:02:20]} axb5 {[%emt 0:00:53]} 26. Bc6 {[%emt 0:02:34]} Red8 {[%emt 0:06:06]} 27. Nd5 {[%emt 0:01:05]} Qa7 {[%emt 0:07:34]} 28. Bxb5 {[%emt 0:01:02]} Rxc1 {[%emt 0:01:33]} 1/2-1/2

[Event "Cracovia Festival-A 2023"]
[Site "Krakow"]
[Date "2023.12.28"]
[Round "2.27"]
[White "Steindl, Johannes"]
[Black "Lehocz, Jozsef Jr."]
[Result "1-0"]
[ECO "B22"]
[WhiteElo "2334"]
[BlackElo "2116"]
[Annotator "ChessBase"]
[PlyCount "81"]
[EventDate "2023.12.24"]
[EventType "swiss"]
[EventCountry "POL"]
[SourceTitle "playchess.com"]
[Source "ChessBase"]
[SourceQuality "1"]
[TimeControl "40/5400+30:1800+30"]

1. e4 {[%emt 0:00:03]} c5 {[%emt 0:00:17]} 2. c3 {[%emt 0:00:04]} Nf6 {[%emt 0:00:35]} 3. e5 {[%emt 0:00:03]} Nd5 {[%emt 0:00:11]} 4. Bc4 {[%emt 0:00:04]} Nb6 {[%emt 0:04:41]} 5. Bb3 {[%emt 0:00:04]} c4 {[%emt 0:10:51]} 6. Bc2 {[%emt 0:00:04]} Nc6 {[%emt 0:02:13]} 7. Nf3 {[%emt 0:00:10]} g6 {[%emt 0:02:19]} 8. O-O {[%emt 0:00:15]} Bg7 {[%emt 0:00:55]} 9. Re1 {[%emt 0:04:58]} d6 {[%emt 0:08:11]} 10. exd6 {[%emt 0:01:04]} Qxd6 {[%emt 0:00:13]} 11. b3 {[%emt 0:00:19]} O-O {[%emt 0:03:41]} 12. Na3 {[%emt 0:00:44]} cxb3 {[%emt 0:05:24]} 13. axb3 {[%emt 0:00:06]} Rd8 {[%emt 0:14:17]} 14. d4 {[%emt 0:05:42]} Nd5 {[%emt 0:07:59]} 15. Bd2 {[%emt 0:06:35]} Bg4 {[%emt 0:06:45]} 16. h3 {[%emt 0:02:39]} Bxf3 {[%emt 0:01:15]} 17. Qxf3 {[%emt 0:00:04]} e5 {[%emt 0:03:06]} 18. Be4 {[%emt 0:01:34]} exd4 {[%emt 0:03:32]} 19. Bxd5 {[%emt 0:06:07]} Qxd5 {[%emt 0:00:36]} 20. Re8+ {[%emt 0:00:08]} Rxe8 {[%emt 0:01:29]} 21. Qxd5 {[%emt 0:00:04]} dxc3 {[%emt 0:00:09]} 22. Be3 {[%emt 0:00:07]} Rad8 {[%emt 0:07:21]} 23. Qf3 {[%emt 0:00:23]} Nb4 {[%emt 0:05:08]} 24. Qxb7 {[%emt 0:01:10]} c2 {[%emt 0:02:40]} 25. Nxc2 {[%emt 0:00:17]} Nxc2 {[%emt 0:01:56]} 26. Rxa7 {[%emt 0:00:09]} Rf8 {[%emt 0:02:31]} 27. Bc5 {[%emt 0:00:40]} Rd1+ {[%emt 0:00:48]} 28. Kh2 {[%emt 0:00:04]} Be5+ {[%emt 0:00:45]} 29. g3 {[%emt 0:00:06]} Bd6 {[%emt 0:02:32]} 30. b4 {[%emt 0:00:28]} Rd2 {[%emt 0:02:20]} 31. Kg1 {[%emt 0:05:20]} Rd1+ {[%emt 0:00:19]} 32. Kg2 {[%emt 0:00:14]} Ne1+ {[%emt 0:00:44]} 33. Kf1 {[%emt 0:01:19]} Bxc5 {[%emt 0:00:26]} 34. bxc5 {[%emt 0:00:05]} Nd3+ {[%emt 0:00:06]} 35. Ke2 {[%emt 0:14:35]} Nxc5 {[%emt 0:00:04]} 36. Qb5 {[%emt 0:00:12]} Ne4 {[%emt 0:01:34]} 37. Qe5 {[%emt 0:00:06]} Rd2+ {[%emt 0:00:30]} 38. Ke1 {[%emt 0:01:47]} Rd6 {[%emt 0:00:32]} 39. Re7 {[%emt 0:00:17]} Rfd8 {[%emt 0:00:33]} 40. Qxe4 {[%emt 0:00:00]} h5 {[%emt 0:00:00]} 41. Qf4 {[%emt 0:01:54]} 1-0

[Event "Cracovia Festival-A 2023"]
[Site "Krakow"]
[Date "2023.12.28"]
[Round "2.28"]
[White "Meurs, Tom"]
[Black "Gbiorczyk, Mikolaj"]
[Result "1-0"]
[ECO "C03"]
[WhiteElo "2290"]
[BlackElo "2137"]
[Annotator "ChessBase"]
[PlyCount "97"]
[EventDate "2023.12.24"]
[EventType "swiss"]
[EventCountry "POL"]
[SourceTitle "playchess.com"]
[Source "ChessBase"]
[SourceQuality "1"]
[TimeControl "40/5400+30:1800+30"]

1. e4 {[%emt 0:00:03]} e6 {[%emt 0:00:17]} 2. d4 {[%emt 0:00:15]} d5 {[%emt 0:00:07]} 3. Nd2 {[%emt 0:00:15]} Be7 {[%emt 0:00:34]} 4. Ngf3 {[%emt 0:00:22]} Nf6 {[%emt 0:00:26]} 5. e5 {[%emt 0:02:00]} Nfd7 {[%emt 0:00:06]} 6. Bd3 {[%emt 0:01:27]} c5 {[%emt 0:00:11]} 7. c3 {[%emt 0:00:04]} Nc6 {[%emt 0:00:13]} 8. O-O {[%emt 0:02:01]} a5 {[%emt 0:01:14]} 9. a4 {[%emt 0:04:25]} cxd4 {[%emt 0:00:48]} 10. cxd4 {[%emt 0:00:13]} Nb4 {[%emt 0:00:21]} 11. Bb1 {[%emt 0:02:02]} b6 {[%emt 0:00:42]} 12. Re1 {[%emt 0:00:33]} Ba6 {[%emt 0:00:17]} 13. Nf1 {[%emt 0:00:24]} Rc8 {[%emt 0:00:46]} 14. Ra3 {[%emt 0:01:35]} Nb8 {[%emt 0:01:21]} 15. Ng3 {[%emt 0:02:15]} Kd7 {[%emt 0:10:26]} 16. h4 {[%emt 0:33:38]} Bxh4 {[%emt 0:20:12]} 17. Nf5 {[%emt 0:18:42]} Be7 {[%emt 0:15:31]} 18. Nd6 {[%emt 0:02:14]} Bxd6 {[%emt 0:00:09]} 19. exd6 {[%emt 0:00:03]} N8c6 {[%emt 0:18:19]} 20. Ng5 {[%emt 0:05:41]} Qf8 {[%emt 0:01:10]} 21. Rf3 {[%emt 0:02:40]} Nd8 {[%emt 0:00:05]} 22. Rxe6 {[%emt 0:18:05]} Nxe6 {[%emt 0:07:17]} 23. Rxf7+ {[%emt 0:00:14]} Qxf7 {[%emt 0:00:09]} 24. Nxf7 {[%emt 0:00:05]} Rhf8 {[%emt 0:04:25]} 25. Ne5+ {[%emt 0:01:27]} Kxd6 {[%emt 0:00:05]} 26. Be3 {[%emt 0:00:07]} Nf4 {[%emt 0:14:11]} 27. Qg4 {[%emt 0:00:07]} Ne2+ {[%emt 0:00:03]} 28. Kh2 {[%emt 0:00:03]} Rc7 {[%emt 0:00:13]} 29. g3 {[%emt 0:01:04]} g6 {[%emt 0:01:21]} 30. Kg2 {[%emt 0:00:19]} Rf6 {[%emt 0:01:15]} 31. Qg5 {[%emt 0:00:17]} Rf8 {[%emt 0:00:52]} 32. Bxg6 {[%emt 0:01:08]} Nc6 {[%emt 0:01:49]} 33. Qh6 {[%emt 0:01:58]} Rf6 {[%emt 0:00:26]} 34. Bg5 {[%emt 0:00:05]} Rxg6 {[%emt 0:00:53]} 35. Qf8+ {[%emt 0:00:37]} Ke6 {[%emt 0:00:38]} 36. Qe8+ {[%emt 0:00:42]} Ne7 {[%emt 0:00:35]} 37. Nxg6 {[%emt 0:00:34]} hxg6 {[%emt 0:00:04]} 38. Bxe7 {[%emt 0:00:45]} Rxe7 {[%emt 0:00:01]} 39. Qxg6+ {[%emt 0:00:10]} Kd7 {[%emt 0:00:06]} 40. Qxb6 {[%emt 0:00:00]} Bc4 {[%emt 0:00:00]} 41. Qxa5 {[%emt 0:01:19]} Nc1 {[%emt 0:06:45]} 42. Qb6 {[%emt 0:03:09]} Nb3 {[%emt 0:01:02]} 43. Qb4 {[%emt 0:06:47]} Nxd4 {[%emt 0:02:57]} 44. Qb7+ {[%emt 0:00:30]} Kd6 {[%emt 0:00:04]} 45. Qb8+ {[%emt 0:03:19]} Kc6 {[%emt 0:07:13]} 46. Qa8+ {[%emt 0:01:55]} Kd6 {[%emt 0:01:37]} 47. Qd8+ {[%emt 0:00:43]} Rd7 {[%emt 0:00:34]} 48. Qf8+ {[%emt 0:04:26]} Ke6 {[%emt 0:01:32]} 49. Qh6+ {[%emt 0:00:19]} 1-0

[Event "Cracovia Festival-A 2023"]
[Site "Krakow"]
[Date "2023.12.28"]
[Round "2.29"]
[White "Kaliszuk, Kamil"]
[Black "Antolak, Julia"]
[Result "1/2-1/2"]
[ECO "A21"]
[WhiteElo "2107"]
[BlackElo "2287"]
[Annotator "ChessBase"]
[PlyCount "56"]
[EventDate "2023.12.24"]
[EventType "swiss"]
[EventCountry "POL"]
[SourceTitle "playchess.com"]
[Source "ChessBase"]
[SourceQuality "1"]
[TimeControl "40/5400+30:1800+30"]

1. c4 {[%emt 0:00:11]} e5 {[%emt 0:00:08]} 2. Nc3 {[%emt 0:01:03]} d6 {[%emt 0:00:52]} 3. d4 {[%emt 0:04:10]} exd4 {[%emt 0:01:39]} 4. Qxd4 {[%emt 0:00:03]} Nc6 {[%emt 0:01:15]} 5. Qd2 {[%emt 0:00:46]} g6 {[%emt 0:05:13]} 6. b3 {[%emt 0:03:42]} Bg7 {[%emt 0:06:00]} 7. Bb2 {[%emt 0:01:02]} Nf6 {[%emt 0:01:28]} 8. g3 {[%emt 0:02:03]} O-O {[%emt 0:03:10]} 9. Bg2 {[%emt 0:01:44]} Be6 {[%emt 0:01:36]} 10. Nf3 {[%emt 0:09:14]} Qd7 {[%emt 0:04:47]} 11. Ng5 {[%emt 0:06:44]} h6 {[%emt 0:02:24]} 12. Nxe6 {[%emt 0:01:29]} fxe6 {[%emt 0:00:11]} 13. O-O {[%emt 0:09:30]} e5 {[%emt 0:03:40]} 14. c5 {[%emt 0:11:04]} Rad8 {[%emt 0:07:15]} 15. cxd6 {[%emt 0:05:40]} cxd6 {[%emt 0:00:18]} 16. Rad1 {[%emt 0:04:21]} Qf5 {[%emt 0:03:24]} 17. Nd5 {[%emt 0:07:22]} Ne4 {[%emt 0:07:10]} 18. Qc2 {[%emt 0:09:00]} Nc5 {[%emt 0:08:30]} 19. Qc4 {[%emt 0:04:39]} Kh7 {[%emt 0:02:08]} 20. b4 {[%emt 0:01:18]} Ne6 {[%emt 0:02:03]} 21. Be4 {[%emt 0:03:03]} Qh5 {[%emt 0:05:19]} 22. h4 {[%emt 0:04:31]} Ncd4 {[%emt 0:02:39]} 23. Rd2 {[%emt 0:01:45]} Qg4 {[%emt 0:06:34]} 24. Qd3 {[%emt 0:01:26]} Nf5 {[%emt 0:00:26]} 25. Bf3 {[%emt 0:01:11]} Qh3 {[%emt 0:00:05]} 26. Bg2 {[%emt 0:01:14]} Qg4 {[%emt 0:00:04]} 27. Bf3 {[%emt 0:04:19]} Qh3 {[%emt 0:00:43]} 28. Bg2 {[%emt 0:00:26]} Qg4 {[%emt 0:00:04]} 1/2-1/2

[Event "Cracovia Festival-A 2023"]
[Site "Krakow"]
[Date "2023.12.28"]
[Round "2.30"]
[White "Janeczko, Jakub"]
[Black "Biesiadecki, Adam"]
[Result "1-0"]
[ECO "B31"]
[WhiteElo "2283"]
[BlackElo "2102"]
[Annotator "ChessBase"]
[PlyCount "65"]
[EventDate "2023.12.24"]
[EventType "swiss"]
[EventCountry "POL"]
[SourceTitle "playchess.com"]
[Source "ChessBase"]
[SourceQuality "1"]
[TimeControl "40/5400+30:1800+30"]

1. e4 {[%emt 0:00:02]} c5 {[%emt 0:00:08]} 2. Nf3 {[%emt 0:00:08]} Nc6 {[%emt 0:00:05]} 3. Bb5 {[%emt 0:00:03]} g6 {[%emt 0:00:08]} 4. O-O {[%emt 0:00:10]} Bg7 {[%emt 0:00:13]} 5. c3 {[%emt 0:00:04]} Nf6 {[%emt 0:00:14]} 6. Re1 {[%emt 0:00:17]} O-O {[%emt 0:00:13]} 7. h3 {[%emt 0:00:07]} d5 {[%emt 0:00:43]} 8. e5 {[%emt 0:00:07]} Ne8 {[%emt 0:03:02]} 9. Bxc6 {[%emt 0:05:36]} bxc6 {[%emt 0:00:03]} 10. d4 {[%emt 0:00:07]} cxd4 {[%emt 0:00:09]} 11. cxd4 {[%emt 0:00:09]} Nc7 {[%emt 0:05:47]} 12. Nc3 {[%emt 0:02:33]} Ne6 {[%emt 0:03:18]} 13. Ng5 {[%emt 0:12:54]} Nxg5 {[%emt 0:07:58]} 14. Bxg5 {[%emt 0:00:07]} f6 {[%emt 0:00:24]} 15. Bf4 {[%emt 0:03:01]} fxe5 {[%emt 0:03:43]} 16. Bxe5 {[%emt 0:00:32]} Bxe5 {[%emt 0:00:58]} 17. Rxe5 {[%emt 0:00:25]} Rf5 {[%emt 0:01:41]} 18. Qe2 {[%emt 0:07:48]} Rxe5 {[%emt 0:00:57]} 19. Qxe5 {[%emt 0:00:16]} Qd6 {[%emt 0:00:48]} 20. Qe3 {[%emt 0:04:17]} Rb8 {[%emt 0:07:36]} 21. b3 {[%emt 0:03:31]} Rb7 {[%emt 0:05:02]} 22. Na4 {[%emt 0:01:16]} Qf6 {[%emt 0:05:19]} 23. Nc5 {[%emt 0:06:19]} Rc7 {[%emt 0:00:06]} 24. Re1 {[%emt 0:01:38]} Bf5 {[%emt 0:03:50]} 25. g4 {[%emt 0:10:02]} Bc8 {[%emt 0:00:22]} 26. Qg3 {[%emt 0:01:16]} Qd6 {[%emt 0:01:01]} 27. Re5 {[%emt 0:01:15]} e6 {[%emt 0:04:27]} 28. Qe3 {[%emt 0:03:59]} Re7 {[%emt 0:01:22]} 29. h4 {[%emt 0:08:43]} Re8 {[%emt 0:04:08]} 30. h5 {[%emt 0:01:22]} Qe7 {[%emt 0:00:37]} 31. hxg6 {[%emt 0:04:52]} hxg6 {[%emt 0:00:07]} 32. Rg5 {[%emt 0:01:29]} Qf6 {[%emt 0:02:34]} 33. Nd3 {[%emt 0:01:21]} 1-0